[Event "Titled Tuesday Blitz May 2 Early 2023"]
[White "Karwowski, Kacper"]
[Black "Nissinen, Niilo Man"]
[WhiteFideId "1126032"]
[BlackFideId "30950767"]
[WhiteElo "2261"]
[BlackElo "1952"]
[Result "1-0"]
[Round "03"]
[TimeControl "180+2"]
[Date "2023.05.02"]
[WhiteClock "0:00:07"]
[BlackClock "0:00:06"]

1. c4 {[%clk 0:03:00]}  Nf6 {[%clk 0:02:59]} 2. Nc3 {[%clk 0:02:58]}  c5 {[%clk 0:02:57]} 3. e4 {[%clk 0:02:53]}  g6 {[%clk 0:02:54]} 4. f4 {[%clk 0:02:49]}  d6 {[%clk 0:02:44]} 5. g3 {[%clk 0:02:44]}  Bg7 {[%clk 0:02:43]} 6. Bg2 {[%clk 0:02:44]}  O-O {[%clk 0:02:41]} 7. Nf3 {[%clk 0:02:44]}  Nc6 {[%clk 0:02:40]} 8. O-O {[%clk 0:02:44]}  e5 {[%clk 0:02:05]} 9. d3 {[%clk 0:02:41]}  Ne8 {[%clk 0:02:01]} 10. Nh4 {[%clk 0:02:17]}  exf4 {[%clk 0:01:55]} 11. Qe1 {[%clk 0:01:59]}  fxg3 {[%clk 0:01:46]} 12. Qxg3 {[%clk 0:02:00]}  Nd4 {[%clk 0:01:20]} 13. Kh1 {[%clk 0:01:51]}  Nc7 {[%clk 0:01:03]} 14. Bg5 {[%clk 0:01:36]}  Qd7 {[%clk 0:00:58]} 15. Rf2 {[%clk 0:01:07]}  f6 {[%clk 0:00:39]} 16. Be3 {[%clk 0:00:56]}  Nce6 {[%clk 0:00:29]} 17. Raf1 {[%clk 0:00:54]}  Qe7 {[%clk 0:00:18]} 18. Nd5 {[%clk 0:00:52]}  Qd8 {[%clk 0:00:15]} 19. Bh3 {[%clk 0:00:45]}  b5 {[%clk 0:00:15]} 20. Rg2 {[%clk 0:00:17]}  bxc4 {[%clk 0:00:10]} 21. dxc4 {[%clk 0:00:18]}  Ba6 {[%clk 0:00:09]} 22. b3 {[%clk 0:00:17]}  Rb8 {[%clk 0:00:09]} 23. Bxd4 {[%clk 0:00:08]}  Nxd4 {[%clk 0:00:09]} 24. Nxg6 {[%clk 0:00:08]}  hxg6 {[%clk 0:00:08]} 25. Qxg6 {[%clk 0:00:09]}  Rb7 {[%clk 0:00:07]} 26. Nxf6+ {[%clk 0:00:03]}  Rxf6 {[%clk 0:00:06]} 27. Rxf6 {[%clk 0:00:04]}  Re7 {[%clk 0:00:03]} 28. Rxd6 {[%clk 0:00:04]}  Qe8 {[%clk 0:00:03]} 29. Qxe8+ {[%clk 0:00:04]}  Rxe8 {[%clk 0:00:04]} 30. Rd7 {[%clk 0:00:04]}  Rxe4 {[%clk 0:00:01]} 31. Rdxg7+ {[%clk 0:00:04]}  Kh8 {[%clk 0:00:02]} 32. Rg8+ {[%clk 0:00:04]}  Kh7 {[%clk 0:00:02]} 33. R2g7+ {[%clk 0:00:04]}  Kh6 {[%clk 0:00:02]} 34. Rg6+ {[%clk 0:00:05]}  Kh7 {[%clk 0:00:02]} 35. R8g7+ {[%clk 0:00:05]}  Kh8 {[%clk 0:00:02]} 36. Rf7 {[%clk 0:00:03]}  Re1+ {[%clk 0:00:02]} 37. Rf1 {[%clk 0:00:04]}  Rxf1+ {[%clk 0:00:02]} 38. Bxf1 {[%clk 0:00:05]}  Bb7+ {[%clk 0:00:03]} 39. Bg2 {[%clk 0:00:06]}  Bc8 {[%clk 0:00:01]} 40. Rg5 {[%clk 0:00:04]}  Ne6 {[%clk 0:00:01]} 41. Re5 {[%clk 0:00:04]}  Kg7 {[%clk 0:00:01]} 42. Bh3 {[%clk 0:00:05]}  Kf6 {[%clk 0:00:01]} 43. Rxe6+ {[%clk 0:00:03]}  Bxe6 {[%clk 0:00:02]} 44. Bxe6 {[%clk 0:00:04]}  Kxe6 {[%clk 0:00:03]} 45. Kg2 {[%clk 0:00:04]}  Ke5 {[%clk 0:00:03]} 46. h4 {[%clk 0:00:03]}  Kd4 {[%clk 0:00:04]} 47. h5 {[%clk 0:00:04]}  Ke5 {[%clk 0:00:04]} 48. h6 {[%clk 0:00:05]}  Kf6 {[%clk 0:00:05]} 49. Kf3 {[%clk 0:00:06]}  Kg6 {[%clk 0:00:05]} 50. Ke4 {[%clk 0:00:06]}  Kxh6 {[%clk 0:00:06]} 51. Kd5 {[%clk 0:00:07]} 1-0


[Site "https://www.chess.com"]

[Event "Titled Tuesday Blitz May 2 Early 2023"]
[White "Kuchava, Ana"]
[Black "Kubatko, Ivan"]
[WhiteFideId "13605348"]
[BlackFideId "24111473"]
[WhiteElo "2001"]
[BlackElo "2285"]
[Result "0-1"]
[Round "03"]
[TimeControl "180+2"]
[Date "2023.05.02"]
[WhiteClock "0:00:13"]
[BlackClock "0:00:07"]

1. d4 {[%clk 0:03:00]}  d5 {[%clk 0:03:00]} 2. Nf3 {[%clk 0:03:00]}  c5 {[%clk 0:03:00]} 3. c4 {[%clk 0:02:54]}  e6 {[%clk 0:03:00]} 4. cxd5 {[%clk 0:02:42]}  exd5 {[%clk 0:03:01]} 5. Nc3 {[%clk 0:02:42]}  Nc6 {[%clk 0:03:01]} 6. Bf4 {[%clk 0:02:39]}  Nf6 {[%clk 0:02:59]} 7. e4 {[%clk 0:02:36]}  dxe4 {[%clk 0:02:50]} 8. d5 {[%clk 0:02:24]}  exf3 {[%clk 0:02:41]} 9. dxc6 {[%clk 0:02:24]}  Qxd1+ {[%clk 0:02:17]} 10. Rxd1 {[%clk 0:02:25]}  bxc6 {[%clk 0:02:13]} 11. gxf3 {[%clk 0:02:00]}  Be7 {[%clk 0:02:11]} 12. Rg1 {[%clk 0:01:41]}  O-O {[%clk 0:02:02]} 13. Bh6 {[%clk 0:01:40]}  Nh5 {[%clk 0:01:58]} 14. Be2 {[%clk 0:01:29]}  Re8 {[%clk 0:01:25]} 15. f4 {[%clk 0:01:19]}  Bf6 {[%clk 0:01:25]} 16. Kf1 {[%clk 0:01:17]}  Bh3+ {[%clk 0:01:23]} 17. Ke1 {[%clk 0:01:15]}  Kf8 {[%clk 0:00:59]} 18. Bg5 {[%clk 0:01:12]}  Bd4 {[%clk 0:00:59]} 19. Rd3 {[%clk 0:01:01]}  Bf5 {[%clk 0:00:57]} 20. Rf3 {[%clk 0:00:39]}  Rab8 {[%clk 0:00:36]} 21. b3 {[%clk 0:00:27]}  h6 {[%clk 0:00:36]} 22. Bh4 {[%clk 0:00:26]}  Nf6 {[%clk 0:00:29]} 23. Bxf6 {[%clk 0:00:21]}  Bxf6 {[%clk 0:00:27]} 24. Kd2 {[%clk 0:00:21]}  Rbd8+ {[%clk 0:00:26]} 25. Bd3 {[%clk 0:00:18]}  Rd4 {[%clk 0:00:22]} 26. Ne2 {[%clk 0:00:16]}  Rd5 {[%clk 0:00:20]} 27. Nc3 {[%clk 0:00:14]}  Rxd3+ {[%clk 0:00:18]} 28. Rxd3 {[%clk 0:00:13]}  Bxd3 {[%clk 0:00:18]} 29. Kxd3 {[%clk 0:00:14]}  Bd4 {[%clk 0:00:17]} 30. Rg2 {[%clk 0:00:13]}  f5 {[%clk 0:00:17]} 31. Ne2 {[%clk 0:00:11]}  Re4 {[%clk 0:00:15]} 32. f3 {[%clk 0:00:09]}  Re3+ {[%clk 0:00:15]} 33. Kc4 {[%clk 0:00:10]}  Rxf3 {[%clk 0:00:15]} 34. Nxd4 {[%clk 0:00:10]}  cxd4 {[%clk 0:00:16]} 35. Kxd4 {[%clk 0:00:11]}  Rxf4+ {[%clk 0:00:16]} 36. Kc5 {[%clk 0:00:11]}  g5 {[%clk 0:00:11]} 37. Kxc6 {[%clk 0:00:12]}  Rf1 {[%clk 0:00:10]} 38. Kb7 {[%clk 0:00:12]}  f4 {[%clk 0:00:08]} 39. Kxa7 {[%clk 0:00:12]}  f3 {[%clk 0:00:09]} 40. Rc2 {[%clk 0:00:12]}  g4 {[%clk 0:00:06]} 41. b4 {[%clk 0:00:12]}  Rb1 {[%clk 0:00:05]} 42. a3 {[%clk 0:00:11]}  h5 {[%clk 0:00:06]} 43. Ka6 {[%clk 0:00:10]}  h4 {[%clk 0:00:06]} 44. b5 {[%clk 0:00:11]}  g3 {[%clk 0:00:06]} 45. hxg3 {[%clk 0:00:11]}  hxg3 {[%clk 0:00:07]} 46. Rc3 {[%clk 0:00:11]}  f2 {[%clk 0:00:06]} 47. Rf3+ {[%clk 0:00:11]}  Ke7 {[%clk 0:00:06]} 48. b6 {[%clk 0:00:12]}  f1=Q+ {[%clk 0:00:06]} 49. Rxf1 {[%clk 0:00:10]}  Rxf1 {[%clk 0:00:07]} 50. b7 {[%clk 0:00:10]}  Rb1 {[%clk 0:00:07]} 51. Ka7 {[%clk 0:00:11]}  g2 {[%clk 0:00:07]} 52. b8=Q {[%clk 0:00:12]}  Rxb8 {[%clk 0:00:07]} 53. Kxb8 {[%clk 0:00:13]}  g1=Q {[%clk 0:00:07]} 54. a4 {[%clk 0:00:13]}  Qc5 {[%clk 0:00:07]} 0-1


[Site "https://www.chess.com"]

[Event "Titled Tuesday Blitz May 2 Early 2023"]
[White "Bychkov, Vladimir"]
[Black "Thiel, Thomas"]
[WhiteFideId "24151513"]
[BlackFideId "4615964"]
[WhiteElo "2224"]
[BlackElo "2234"]
[Result "1-0"]
[Round "03"]
[TimeControl "180+2"]
[Date "2023.05.02"]
[WhiteClock "0:00:48"]
[BlackClock "0:00:23"]

1. e4 {[%clk 0:02:52]}  d5 {[%clk 0:02:59]} 2. e5 {[%clk 0:02:49]}  Bf5 {[%clk 0:02:56]} 3. g4 {[%clk 0:02:48]}  Bg6 {[%clk 0:02:54]} 4. f4 {[%clk 0:02:46]}  e6 {[%clk 0:02:53]} 5. Ne2 {[%clk 0:02:43]}  Be4 {[%clk 0:02:48]} 6. Rg1 {[%clk 0:02:40]}  Qh4+ {[%clk 0:02:43]} 7. Rg3 {[%clk 0:02:38]}  Qxh2 {[%clk 0:02:40]} 8. d3 {[%clk 0:02:36]}  Be7 {[%clk 0:02:34]} 9. dxe4 {[%clk 0:02:29]}  Bh4 {[%clk 0:02:33]} 10. Qd3 {[%clk 0:02:27]}  dxe4 {[%clk 0:02:22]} 11. Qb3 {[%clk 0:02:20]}  Nc6 {[%clk 0:02:12]} 12. Nd2 {[%clk 0:02:17]}  O-O-O {[%clk 0:01:50]} 13. Nxe4 {[%clk 0:02:12]}  Nd4 {[%clk 0:01:49]} 14. Bg2 {[%clk 0:01:42]}  Nxb3 {[%clk 0:01:42]} 15. axb3 {[%clk 0:01:39]}  Ne7 {[%clk 0:01:20]} 16. Kf2 {[%clk 0:01:34]}  Nd5 {[%clk 0:01:12]} 17. Rxa7 {[%clk 0:01:31]}  Kb8 {[%clk 0:01:10]} 18. Ra5 {[%clk 0:01:25]}  Bxg3+ {[%clk 0:00:59]} 19. N4xg3 {[%clk 0:01:22]}  Qh4 {[%clk 0:00:57]} 20. c4 {[%clk 0:01:20]}  Nb6 {[%clk 0:00:56]} 21. Be3 {[%clk 0:01:16]}  Qxg4 {[%clk 0:00:41]} 22. Ne4 {[%clk 0:01:11]}  Rd3 {[%clk 0:00:31]} 23. Bf3 {[%clk 0:00:55]}  Qh4+ {[%clk 0:00:30]} 24. N2g3 {[%clk 0:00:54]}  f5 {[%clk 0:00:24]} 25. exf6 {[%clk 0:00:49]}  gxf6 {[%clk 0:00:23]} 26. Rh5 {[%clk 0:00:48]} 1-0


[Site "https://www.chess.com"]

[Event "Titled Tuesday Blitz May 2 Early 2023"]
[White "Clawitter, Craig"]
[Black "Liu, Casper"]
[WhiteFideId "2023105"]
[BlackFideId "1454153"]
[WhiteElo "2050"]
[BlackElo "2221"]
[Result "0-1"]
[Round "03"]
[TimeControl "180+2"]
[Date "2023.05.02"]
[WhiteClock "0:00:01"]
[BlackClock "0:00:27"]

1. e4 {[%clk 0:02:48]}  c5 {[%clk 0:02:58]} 2. Nf3 {[%clk 0:02:47]}  d6 {[%clk 0:02:59]} 3. d4 {[%clk 0:02:48]}  cxd4 {[%clk 0:03:00]} 4. Nxd4 {[%clk 0:02:48]}  Nf6 {[%clk 0:03:00]} 5. Nc3 {[%clk 0:02:49]}  Nc6 {[%clk 0:03:01]} 6. Be3 {[%clk 0:02:49]}  e5 {[%clk 0:03:00]} 7. Ndb5 {[%clk 0:02:48]}  a6 {[%clk 0:03:00]} 8. Na3 {[%clk 0:02:48]}  b5 {[%clk 0:03:00]} 9. Nd5 {[%clk 0:02:47]}  Nxd5 {[%clk 0:02:59]} 10. exd5 {[%clk 0:02:47]}  Ne7 {[%clk 0:02:59]} 11. c4 {[%clk 0:02:46]}  f5 {[%clk 0:02:48]} 12. f4 {[%clk 0:02:34]}  exf4 {[%clk 0:02:43]} 13. Bxf4 {[%clk 0:02:33]}  Ng6 {[%clk 0:02:44]} 14. Qh5 {[%clk 0:02:07]}  Be7 {[%clk 0:02:31]} 15. Bd3 {[%clk 0:01:45]}  O-O {[%clk 0:02:29]} 16. O-O {[%clk 0:01:44]}  Qb6+ {[%clk 0:02:06]} 17. Kh1 {[%clk 0:01:43]}  Qd4 {[%clk 0:02:07]} 18. Qe2 {[%clk 0:01:10]}  Nxf4 {[%clk 0:02:00]} 19. Rxf4 {[%clk 0:01:08]}  Qxf4 {[%clk 0:01:54]} 20. Qxe7 {[%clk 0:01:08]}  b4 {[%clk 0:01:40]} 21. Nc2 {[%clk 0:01:01]}  Qd2 {[%clk 0:01:39]} 22. Ne1 {[%clk 0:00:39]}  Qxb2 {[%clk 0:01:15]} 23. Rb1 {[%clk 0:00:31]}  Qe5 {[%clk 0:01:15]} 24. Qxe5 {[%clk 0:00:21]}  dxe5 {[%clk 0:01:16]} 25. Rxb4 {[%clk 0:00:18]}  e4 {[%clk 0:01:16]} 26. Be2 {[%clk 0:00:16]}  Bd7 {[%clk 0:01:15]} 27. c5 {[%clk 0:00:16]}  Rab8 {[%clk 0:01:12]} 28. a3 {[%clk 0:00:12]}  a5 {[%clk 0:01:05]} 29. Rd4 {[%clk 0:00:08]}  Rb1 {[%clk 0:01:05]} 30. Rd1 {[%clk 0:00:08]}  Rxd1 {[%clk 0:00:57]} 31. Bxd1 {[%clk 0:00:09]}  Bb5 {[%clk 0:00:44]} 32. Kg1 {[%clk 0:00:08]}  Rd8 {[%clk 0:00:40]} 33. Kf2 {[%clk 0:00:08]}  Rxd5 {[%clk 0:00:40]} 34. Bb3 {[%clk 0:00:08]}  Bc6 {[%clk 0:00:39]} 35. Nc2 {[%clk 0:00:07]}  Kf8 {[%clk 0:00:31]} 36. Bxd5 {[%clk 0:00:07]}  Bxd5 {[%clk 0:00:31]} 37. Ne3 {[%clk 0:00:07]}  Be6 {[%clk 0:00:32]} 38. g3 {[%clk 0:00:07]}  g5 {[%clk 0:00:31]} 39. Ke2 {[%clk 0:00:06]}  Ke7 {[%clk 0:00:31]} 40. Kd2 {[%clk 0:00:06]}  Kd7 {[%clk 0:00:30]} 41. Kc3 {[%clk 0:00:06]}  Kc6 {[%clk 0:00:31]} 42. Kd4 {[%clk 0:00:06]}  f4 {[%clk 0:00:28]} 43. gxf4 {[%clk 0:00:06]}  gxf4 {[%clk 0:00:29]} 44. Nd1 {[%clk 0:00:01]}  e3 {[%clk 0:00:29]} 45. Nc3 {[%clk 0:00:01]}  Bg4 {[%clk 0:00:27]} 0-1


[Site "https://www.chess.com"]

[Event "Titled Tuesday Blitz May 2 Early 2023"]
[White "Yonal, Timur"]
[Black "Bashkansky, Ethan"]
[WhiteFideId "44115725"]
[BlackFideId "2071533"]
[WhiteElo "1966"]
[BlackElo "2101"]
[Result "0-1"]
[Round "03"]
[TimeControl "180+2"]
[Date "2023.05.02"]
[WhiteClock "0:01:42"]
[BlackClock "0:00:52"]

1. e4 {[%clk 0:03:00]}  c6 {[%clk 0:03:00]} 2. d4 {[%clk 0:02:54]}  d5 {[%clk 0:03:00]} 3. exd5 {[%clk 0:02:55]}  cxd5 {[%clk 0:03:01]} 4. Bd3 {[%clk 0:02:55]}  Nf6 {[%clk 0:03:01]} 5. c3 {[%clk 0:02:50]}  Nc6 {[%clk 0:03:01]} 6. Nf3 {[%clk 0:02:48]}  Bg4 {[%clk 0:02:59]} 7. O-O {[%clk 0:02:45]}  Qc7 {[%clk 0:02:56]} 8. Na3 {[%clk 0:02:43]}  e6 {[%clk 0:02:49]} 9. h3 {[%clk 0:02:40]}  Bh5 {[%clk 0:02:44]} 10. Re1 {[%clk 0:02:30]}  Bxa3 {[%clk 0:02:38]} 11. bxa3 {[%clk 0:02:30]}  O-O {[%clk 0:02:37]} 12. a4 {[%clk 0:02:28]}  e5 {[%clk 0:01:53]} 13. dxe5 {[%clk 0:02:13]}  Nxe5 {[%clk 0:01:30]} 14. Be2 {[%clk 0:02:08]}  Bxf3 {[%clk 0:01:17]} 15. Bxf3 {[%clk 0:02:07]}  Qxc3 {[%clk 0:01:17]} 16. Bg5 {[%clk 0:02:01]}  Nxf3+ {[%clk 0:01:16]} 17. Qxf3 {[%clk 0:02:00]}  Qxf3 {[%clk 0:00:57]} 18. gxf3 {[%clk 0:01:59]}  Rfe8 {[%clk 0:00:57]} 19. Red1 {[%clk 0:01:56]}  Rad8 {[%clk 0:00:55]} 20. Rab1 {[%clk 0:01:54]}  Rd7 {[%clk 0:00:55]} 21. Rb5 {[%clk 0:01:49]}  Red8 {[%clk 0:00:54]} 22. Rd4 {[%clk 0:01:47]}  h6 {[%clk 0:00:52]} 23. Bxf6 {[%clk 0:01:46]}  gxf6 {[%clk 0:00:53]} 24. Rc5 {[%clk 0:01:44]}  Kg7 {[%clk 0:00:52]} 25. Kg2 {[%clk 0:01:42]}  f5 {[%clk 0:00:52]} 26. f4 {[%clk 0:01:43]}  Kf6 {[%clk 0:00:53]} 27. Kf3 {[%clk 0:01:43]}  Ke6 {[%clk 0:00:52]} 28. Rdxd5 {[%clk 0:01:42]}  Rxd5 {[%clk 0:00:52]} 0-1


[Site "https://www.chess.com"]

[Event "Titled Tuesday Blitz May 2 Early 2023"]
[White "Vaglio Munoz, Jaime"]
[Black "Ciuffoletti, Paolo"]
[WhiteFideId "6500145"]
[BlackFideId "807630"]
[WhiteElo "2199"]
[BlackElo "2143"]
[Result "0-1"]
[Round "03"]
[TimeControl "180+2"]
[Date "2023.05.02"]
[WhiteClock "0:00:23"]
[BlackClock "0:00:21"]

1. Nf3 {[%clk 0:03:00]}  d5 {[%clk 0:02:57]} 2. b4 {[%clk 0:03:00]}  Nf6 {[%clk 0:02:50]} 3. Bb2 {[%clk 0:02:59]}  g6 {[%clk 0:02:47]} 4. Bxf6 {[%clk 0:02:57]}  exf6 {[%clk 0:02:47]} 5. d4 {[%clk 0:02:56]}  Bxb4+ {[%clk 0:02:45]} 6. c3 {[%clk 0:02:55]}  Be7 {[%clk 0:02:40]} 7. g3 {[%clk 0:02:54]}  Bg4 {[%clk 0:02:31]} 8. Qb3 {[%clk 0:02:54]}  b6 {[%clk 0:02:25]} 9. Bg2 {[%clk 0:02:53]}  O-O {[%clk 0:02:24]} 10. h3 {[%clk 0:02:52]}  Be6 {[%clk 0:02:20]} 11. Nbd2 {[%clk 0:02:51]}  Nc6 {[%clk 0:02:19]} 12. a4 {[%clk 0:02:50]}  Na5 {[%clk 0:02:18]} 13. Qb5 {[%clk 0:02:44]}  c5 {[%clk 0:02:07]} 14. O-O {[%clk 0:02:42]}  a6 {[%clk 0:01:53]} 15. Qb1 {[%clk 0:02:40]}  Rb8 {[%clk 0:01:47]} 16. Re1 {[%clk 0:02:36]}  b5 {[%clk 0:01:43]} 17. axb5 {[%clk 0:02:35]}  axb5 {[%clk 0:01:42]} 18. e4 {[%clk 0:02:33]}  dxe4 {[%clk 0:01:32]} 19. Nxe4 {[%clk 0:02:31]}  Nc4 {[%clk 0:01:30]} 20. dxc5 {[%clk 0:02:26]}  Qc7 {[%clk 0:01:23]} 21. Nd4 {[%clk 0:02:19]}  Bxc5 {[%clk 0:01:02]} 22. Nxf6+ {[%clk 0:02:17]}  Kg7 {[%clk 0:00:57]} 23. Ne4 {[%clk 0:02:08]}  Bd5 {[%clk 0:00:50]} 24. Nxc5 {[%clk 0:01:46]}  Qxc5 {[%clk 0:00:48]} 25. Qc1 {[%clk 0:01:39]}  Bxg2 {[%clk 0:00:44]} 26. Kxg2 {[%clk 0:01:40]}  Rfe8 {[%clk 0:00:41]} 27. Qf4 {[%clk 0:01:36]}  Qd5+ {[%clk 0:00:35]} 28. Kg1 {[%clk 0:01:33]}  Ne5 {[%clk 0:00:35]} 29. Ra7 {[%clk 0:01:27]}  Nd3 {[%clk 0:00:33]} 30. Nf5+ {[%clk 0:00:41]}  Qxf5 {[%clk 0:00:30]} 31. Rxe8 {[%clk 0:00:36]}  Nxf4 {[%clk 0:00:27]} 32. Ree7 {[%clk 0:00:36]}  Nxh3+ {[%clk 0:00:22]} 33. Kg2 {[%clk 0:00:35]}  Qxf2+ {[%clk 0:00:22]} 34. Kxh3 {[%clk 0:00:35]}  Qf5+ {[%clk 0:00:22]} 35. Kg2 {[%clk 0:00:34]}  Rd8 {[%clk 0:00:23]} 36. Re2 {[%clk 0:00:32]}  Rd3 {[%clk 0:00:21]} 37. Rf2 {[%clk 0:00:33]}  Qe4+ {[%clk 0:00:21]} 38. Kh2 {[%clk 0:00:32]}  Qg4 {[%clk 0:00:20]} 39. Rfxf7+ {[%clk 0:00:32]}  Kh6 {[%clk 0:00:20]} 40. Rxh7+ {[%clk 0:00:31]}  Kg5 {[%clk 0:00:21]} 41. Rh3 {[%clk 0:00:24]}  Rd2+ {[%clk 0:00:20]} 42. Kg1 {[%clk 0:00:23]}  Qd1# {[%clk 0:00:21]} 0-1


[Site "https://www.chess.com"]

[Event "Titled Tuesday Blitz May 2 Early 2023"]
[White "Kiseljova, Marya"]
[Black "Donskov, Anatoly"]
[WhiteFideId "4155009"]
[BlackFideId "24143413"]
[WhiteElo "1851"]
[BlackElo "2247"]
[Result "0-1"]
[Round "03"]
[TimeControl "180+2"]
[Date "2023.05.02"]
[WhiteClock "0:00:03"]
[BlackClock "0:00:43"]

1. d4 {[%clk 0:03:00]}  d5 {[%clk 0:02:57]} 2. c4 {[%clk 0:03:01]}  dxc4 {[%clk 0:02:58]} 3. Nf3 {[%clk 0:02:58]}  Nf6 {[%clk 0:02:58]} 4. e3 {[%clk 0:02:54]}  e6 {[%clk 0:02:58]} 5. Bxc4 {[%clk 0:02:55]}  c5 {[%clk 0:02:58]} 6. O-O {[%clk 0:02:54]}  a6 {[%clk 0:02:59]} 7. a4 {[%clk 0:02:48]}  cxd4 {[%clk 0:02:58]} 8. Nxd4 {[%clk 0:02:48]}  Be7 {[%clk 0:02:57]} 9. Nc3 {[%clk 0:02:47]}  O-O {[%clk 0:02:57]} 10. Qf3 {[%clk 0:02:23]}  Nbd7 {[%clk 0:02:39]} 11. Rd1 {[%clk 0:02:09]}  Ne5 {[%clk 0:02:37]} 12. Qe2 {[%clk 0:02:02]}  Nxc4 {[%clk 0:02:28]} 13. Nxe6 {[%clk 0:01:46]}  Bxe6 {[%clk 0:02:27]} 14. Rxd8 {[%clk 0:01:46]}  Rfxd8 {[%clk 0:02:27]} 15. b3 {[%clk 0:01:40]}  Ne5 {[%clk 0:02:18]} 16. Rb1 {[%clk 0:01:13]}  Rac8 {[%clk 0:02:08]} 17. Bd2 {[%clk 0:01:09]}  Bb4 {[%clk 0:01:55]} 18. f4 {[%clk 0:00:30]}  Bg4 {[%clk 0:01:27]} 19. Qf2 {[%clk 0:00:17]}  Bxc3 {[%clk 0:01:18]} 20. fxe5 {[%clk 0:00:15]}  Rxd2 {[%clk 0:01:15]} 21. Qf4 {[%clk 0:00:15]}  Be6 {[%clk 0:01:05]} 22. exf6 {[%clk 0:00:15]}  Bxf6 {[%clk 0:01:06]} 23. Rf1 {[%clk 0:00:14]}  h6 {[%clk 0:01:03]} 24. e4 {[%clk 0:00:13]}  Rcc2 {[%clk 0:01:02]} 25. Qb8+ {[%clk 0:00:04]}  Kh7 {[%clk 0:01:01]} 26. Qg3 {[%clk 0:00:05]}  Bd4+ {[%clk 0:00:54]} 27. Kh1 {[%clk 0:00:05]}  Rxg2 {[%clk 0:00:46]} 28. Qxg2 {[%clk 0:00:04]}  Rxg2 {[%clk 0:00:47]} 29. Kxg2 {[%clk 0:00:04]}  Bxb3 {[%clk 0:00:47]} 30. Rb1 {[%clk 0:00:02]}  Bxa4 {[%clk 0:00:47]} 31. Rxb7 {[%clk 0:00:03]}  f6 {[%clk 0:00:44]} 32. Rd7 {[%clk 0:00:03]}  Bxd7 {[%clk 0:00:43]} 0-1


[Site "https://www.chess.com"]

[Event "Titled Tuesday Blitz May 2 Early 2023"]
[White "Quirke, Jeffrey"]
[Black "Bayasgalan, Khishigbaatar"]
[WhiteFideId "2013029"]
[BlackFideId "4904311"]
[WhiteElo "2007"]
[BlackElo "2057"]
[Result "0-1"]
[Round "03"]
[TimeControl "180+2"]
[Date "2023.05.02"]
[WhiteClock "0:00:25"]
[BlackClock "0:01:02"]

1. e4 {[%clk 0:03:00]}  c5 {[%clk 0:02:58]} 2. Nc3 {[%clk 0:03:00]}  g6 {[%clk 0:02:51]} 3. f4 {[%clk 0:03:00]}  Bg7 {[%clk 0:02:51]} 4. Nf3 {[%clk 0:03:01]}  e6 {[%clk 0:02:51]} 5. e5 {[%clk 0:02:58]}  Ne7 {[%clk 0:02:50]} 6. Ne4 {[%clk 0:02:54]}  O-O {[%clk 0:02:50]} 7. d4 {[%clk 0:02:43]}  cxd4 {[%clk 0:02:47]} 8. Nxd4 {[%clk 0:02:42]}  b6 {[%clk 0:02:40]} 9. Nd6 {[%clk 0:02:41]}  Ba6 {[%clk 0:02:36]} 10. Bxa6 {[%clk 0:02:39]}  Nxa6 {[%clk 0:02:36]} 11. O-O {[%clk 0:02:38]}  Nc7 {[%clk 0:02:20]} 12. c4 {[%clk 0:02:36]}  Nc8 {[%clk 0:02:16]} 13. N4b5 {[%clk 0:02:20]}  Nxd6 {[%clk 0:02:05]} 14. Nxd6 {[%clk 0:02:18]}  f6 {[%clk 0:01:59]} 15. Qe2 {[%clk 0:02:11]}  fxe5 {[%clk 0:01:55]} 16. fxe5 {[%clk 0:02:12]}  Qh4 {[%clk 0:01:55]} 17. Bd2 {[%clk 0:01:17]}  Qd4+ {[%clk 0:01:52]} 18. Kh1 {[%clk 0:01:17]}  Qxe5 {[%clk 0:01:52]} 19. Qxe5 {[%clk 0:01:10]}  Bxe5 {[%clk 0:01:53]} 20. Ne4 {[%clk 0:01:06]}  d5 {[%clk 0:01:50]} 21. cxd5 {[%clk 0:01:01]}  exd5 {[%clk 0:01:51]} 22. Ng5 {[%clk 0:00:56]}  Bxb2 {[%clk 0:01:47]} 23. Rae1 {[%clk 0:00:47]}  Rxf1+ {[%clk 0:01:45]} 24. Rxf1 {[%clk 0:00:47]}  Rf8 {[%clk 0:01:33]} 25. Re1 {[%clk 0:00:44]}  Bf6 {[%clk 0:01:31]} 26. Nf3 {[%clk 0:00:44]}  Re8 {[%clk 0:01:30]} 27. Rc1 {[%clk 0:00:43]}  Ne6 {[%clk 0:01:26]} 28. h3 {[%clk 0:00:38]}  Nc5 {[%clk 0:01:26]} 29. Bb4 {[%clk 0:00:33]}  Nd3 {[%clk 0:01:25]} 30. Rb1 {[%clk 0:00:29]}  Nxb4 {[%clk 0:01:24]} 31. Rxb4 {[%clk 0:00:29]}  Re4 {[%clk 0:01:18]} 32. Rb5 {[%clk 0:00:28]}  d4 {[%clk 0:01:12]} 33. Rd5 {[%clk 0:00:28]}  Re2 {[%clk 0:01:09]} 34. Nxd4 {[%clk 0:00:25]}  Rd2 {[%clk 0:01:02]} 0-1


[Site "https://www.chess.com"]

[Event "Titled Tuesday Blitz May 2 Early 2023"]
[White "Cueto, Jonny"]
[Black "Buscar, Michael"]
[WhiteFideId "3300145"]
[BlackFideId "2603616"]
[WhiteElo "2234"]
[BlackElo "2010"]
[Result "1-0"]
[Round "03"]
[TimeControl "180+2"]
[Date "2023.05.02"]
[WhiteClock "0:00:14"]
[BlackClock "0:00:05"]

1. d4 {[%clk 0:02:57]}  d5 {[%clk 0:02:53]} 2. Nf3 {[%clk 0:02:55]}  Nf6 {[%clk 0:02:52]} 3. c4 {[%clk 0:02:53]}  e6 {[%clk 0:02:52]} 4. g3 {[%clk 0:02:53]}  c5 {[%clk 0:02:50]} 5. Bg2 {[%clk 0:02:53]}  Nc6 {[%clk 0:02:50]} 6. O-O {[%clk 0:02:53]}  Be7 {[%clk 0:02:51]} 7. cxd5 {[%clk 0:02:48]}  exd5 {[%clk 0:02:50]} 8. dxc5 {[%clk 0:02:48]}  Bxc5 {[%clk 0:02:51]} 9. a3 {[%clk 0:02:49]}  O-O {[%clk 0:02:52]} 10. b4 {[%clk 0:02:43]}  Be7 {[%clk 0:02:51]} 11. Bb2 {[%clk 0:02:44]}  Ne4 {[%clk 0:02:49]} 12. Nfd2 {[%clk 0:02:42]}  Bf5 {[%clk 0:02:37]} 13. Nxe4 {[%clk 0:02:32]}  Bxe4 {[%clk 0:02:24]} 14. Bxe4 {[%clk 0:02:27]}  dxe4 {[%clk 0:02:24]} 15. Nd2 {[%clk 0:02:24]}  f5 {[%clk 0:02:19]} 16. Qb3+ {[%clk 0:02:24]}  Kh8 {[%clk 0:02:18]} 17. Rfd1 {[%clk 0:02:15]}  Qe8 {[%clk 0:02:06]} 18. Nc4 {[%clk 0:02:14]}  Qh5 {[%clk 0:02:01]} 19. b5 {[%clk 0:01:48]}  Nd8 {[%clk 0:01:32]} 20. Rd7 {[%clk 0:01:46]}  Bf6 {[%clk 0:01:07]} 21. Bxf6 {[%clk 0:01:46]}  Rxf6 {[%clk 0:01:07]} 22. Rad1 {[%clk 0:01:45]}  Ne6 {[%clk 0:01:03]} 23. Ne5 {[%clk 0:00:59]}  Raf8 {[%clk 0:00:58]} 24. R7d6 {[%clk 0:00:49]}  Qxe2 {[%clk 0:00:45]} 25. Nd7 {[%clk 0:00:43]}  Ng5 {[%clk 0:00:23]} 26. Nxf6 {[%clk 0:00:43]}  gxf6 {[%clk 0:00:13]} 27. Rd8 {[%clk 0:00:34]}  Rxd8 {[%clk 0:00:07]} 28. Rxd8+ {[%clk 0:00:35]}  Kg7 {[%clk 0:00:08]} 29. Qd1 {[%clk 0:00:23]}  Qxb5 {[%clk 0:00:05]} 30. Qd7+ {[%clk 0:00:23]}  Qxd7 {[%clk 0:00:05]} 31. Rxd7+ {[%clk 0:00:23]}  Kg6 {[%clk 0:00:06]} 32. Rxb7 {[%clk 0:00:24]}  a5 {[%clk 0:00:05]} 33. Ra7 {[%clk 0:00:23]}  Nf3+ {[%clk 0:00:05]} 34. Kh1 {[%clk 0:00:22]}  Kg5 {[%clk 0:00:04]} 35. Rxa5 {[%clk 0:00:22]}  Kg4 {[%clk 0:00:05]} 36. Ra6 {[%clk 0:00:14]} 1-0


[Site "https://www.chess.com"]